[Event "Cellavision Cup 2018"]
[Site "Lund"]
[Date "2018.08.04"]
[Round "6"]
[White "Dragicevic, Drazen"]
[Black "Gritsak, Orest"]
[Result "1/2-1/2"]
[ECO "A04"]
[WhiteElo "2339"]
[BlackElo "2464"]
[Annotator "ChessBase"]
[PlyCount "56"]
[EventDate "2018.08.03"]
[EventType "swiss"]
[EventCountry "SWE"]
[SourceTitle "playchess.com"]
[Source "ChessBase"]
[SourceQuality "1"]
[TimeControl "5400+30"]

1. Nf3 {[%emt 0:00:00]} e6 {[%emt 0:01:15]} 2. g3 {[%emt 0:01:26]} b5 {[%emt 0:00:30]} 3. Bg2 {[%emt 0:01:36]} Bb7 {[%emt 0:00:47]} 4. O-O {[%emt 0:01:36]} c5 {[%emt 0:02:28]} 5. a4 {[%emt 0:16:12]} b4 {[%emt 0:01:30]} 6. a5 {[%emt 0:00:24]} Na6 {[%emt 0:06:50]} 7. c3 {[%emt 0:12:24]} Nf6 {[%emt 0:05:51]} 8. d4 {[%emt 0:01:45]} h6 {[%emt 0:07:44]} 9. Re1 {[%emt 0:03:30]} cxd4 {[%emt 0:09:44]} 10. cxd4 {[%emt 0:00:54]} Be7 {[%emt 0:01:34]} 11. Qd3 {[%emt 0:04:43]} O-O {[%emt 0:05:46]} 12. Nbd2 {[%emt 0:04:55]} Nc7 {[%emt 0:04:52]} 13. Nb3 {[%emt 0:13:29]} Be4 {[%emt 0:08:03]} 14. Qd1 {[%emt 0:03:39]} Rc8 {[%emt 0:00:54]} 15. Ne5 {[%emt 0:03:36]} Bxg2 {[%emt 0:08:58]} 16. Kxg2 {[%emt 0:00:02]} Qe8 {[%emt 0:00:15]} 17. Nd3 {[%emt 0:03:47]} Na6 {[%emt 0:04:20]} 18. Bd2 {[%emt 0:03:00]} d5 {[%emt 0:00:39]} 19. Qb1 {[%emt 0:05:11]} Ne4 {[%emt 0:05:03]} 20. f3 {[%emt 0:04:27]} Nxd2 {[%emt 0:01:16]} 21. Nxd2 {[%emt 0:00:02]} Qb5 {[%emt 0:00:38]} 22. Nb3 {[%emt 0:00:46]} Bd6 {[%emt 0:00:44]} 23. Qa2 {[%emt 0:05:26]} Rc2 {[%emt 0:00:12]} 24. Kf1 {[%emt 0:00:14]} Rfc8 {[%emt 0:01:56]} 25. Qa4 {[%emt 0:03:06]} Qxa4 {[%emt 0:04:27]} 26. Rxa4 {[%emt 0:00:01]} f6 {[%emt 0:00:25]} 27. f4 {[%emt 0:01:09]} g5 {[%emt 0:00:20]} 28. Raa1 {[%emt 0:00:34]} Kf7 {[%emt 0:01:48]} 1/2-1/2

[Event "Cellavision Cup 2018"]
[Site "Lund"]
[Date "2018.08.04"]
[Round "6"]
[White "Ornstein, Axel"]
[Black "Cramling, Pia"]
[Result "0-1"]
[ECO "D02"]
[WhiteElo "2309"]
[BlackElo "2453"]
[Annotator "ChessBase"]
[PlyCount "88"]
[EventDate "2018.08.03"]
[EventType "swiss"]
[EventCountry "SWE"]
[SourceTitle "playchess.com"]
[Source "ChessBase"]
[SourceQuality "1"]
[TimeControl "5400+30"]

1. d4 {[%emt 0:02:53]} Nf6 {[%emt 0:00:22]} 2. Nf3 {[%emt 0:00:01]} d5 {[%emt 0:02:43]} 3. Bf4 {[%emt 0:01:41]} c5 {[%emt 0:01:50]} 4. c3 {[%emt 0:00:10]} Nc6 {[%emt 0:01:08]} 5. e3 {[%emt 0:00:46]} Qb6 {[%emt 0:04:26]} 6. Qb3 {[%emt 0:00:23]} c4 {[%emt 0:00:58]} 7. Qc2 {[%emt 0:00:02]} Bf5 {[%emt 0:01:05]} 8. Qc1 {[%emt 0:00:03]} e6 {[%emt 0:00:47]} 9. Nbd2 {[%emt 0:00:06]} Be7 {[%emt 0:01:04]} 10. b3 {[%emt 0:02:20]} Qa5 {[%emt 0:15:38]} 11. b4 {[%emt 0:00:20]} Bxb4 {[%emt 0:08:58]} 12. cxb4 {[%emt 0:00:15]} Nxb4 {[%emt 0:00:07]} 13. Be2 {[%emt 0:38:15]} Nc2+ {[%emt 0:02:37]} 14. Kf1 {[%emt 0:00:01]} Nxa1 {[%emt 0:00:24]} 15. Qxa1 {[%emt 0:00:03]} O-O {[%emt 0:00:21]} 16. h3 {[%emt 0:00:12]} Rfc8 {[%emt 0:07:29]} 17. g4 {[%emt 0:00:07]} Bg6 {[%emt 0:00:29]} 18. Kg2 {[%emt 0:00:04]} Rc6 {[%emt 0:02:16]} 19. Rc1 {[%emt 0:04:09]} Rac8 {[%emt 0:07:45]} 20. Nb1 {[%emt 0:08:38]} Ra6 {[%emt 0:01:43]} 21. a3 {[%emt 0:02:09]} Nd7 {[%emt 0:05:11]} 22. Nfd2 {[%emt 0:02:08]} b5 {[%emt 0:06:37]} 23. Qb2 {[%emt 0:04:38]} Rcc6 {[%emt 0:03:05]} 24. f3 {[%emt 0:03:39]} b4 {[%emt 0:06:03]} 25. axb4 {[%emt 0:02:49]} Qa1 {[%emt 0:03:05]} 26. Qxa1 {[%emt 0:00:53]} Rxa1 {[%emt 0:00:04]} 27. e4 {[%emt 0:00:08]} Rb6 {[%emt 0:01:10]} 28. Rc2 {[%emt 0:01:55]} Rxb4 {[%emt 0:01:42]} 29. Nc3 {[%emt 0:00:01]} f6 {[%emt 0:02:24]} 30. h4 {[%emt 0:02:08]} a5 {[%emt 0:02:18]} 31. h5 {[%emt 0:11:26]} Bf7 {[%emt 0:00:06]} 32. Na2 {[%emt 0:08:24]} Rb6 {[%emt 0:00:47]} 33. Bc7 {[%emt 0:00:12]} Rb7 {[%emt 0:04:27]} 34. Bd6 {[%emt 0:00:36]} a4 {[%emt 0:01:00]} 35. Kf2 {[%emt 0:01:11]} h6 {[%emt 0:01:47]} 36. Nxc4 {[%emt 0:01:04]} dxc4 {[%emt 0:00:28]} 37. Bxc4 {[%emt 0:00:02]} Rb6 {[%emt 0:01:55]} 38. Bc5 {[%emt 0:00:14]} Rbb1 {[%emt 0:00:57]} 39. Bd6 {[%emt 0:00:38]} Rd1 {[%emt 0:01:38]} 40. Ke3 {[%emt 0:00:42]} Re1+ {[%emt 0:00:45]} 41. Be2 {[%emt 0:00:15]} Reb1 {[%emt 0:01:05]} 42. Rc8+ Kh7 43. Bd3 Rb3 44. Nb4 e5 0-1

[Event "Cellavision Cup 2018"]
[Site "Lund"]
[Date "2018.08.04"]
[Round "6"]
[White "Nordebrink, Johan"]
[Black "Ahlander, Bjorn"]
[Result "0-1"]
[ECO "B22"]
[WhiteElo "2146"]
[BlackElo "2433"]
[Annotator "NA"]
[PlyCount "52"]
[EventDate "2018.08.03"]
[EventType "swiss"]
[EventCountry "SWE"]
[SourceTitle "playchess.com"]
[Source "ChessBase"]
[SourceQuality "1"]
[TimeControl "5400+30"]

1. e4 {[%emt 0:00:00]} c5 {[%emt 0:00:00]} 2. c3 {[%emt 0:00:00]} d5 {[%emt 0:00:14]} 3. exd5 {[%emt 0:00:00]} Qxd5 {[%emt 0:00:03]} 4. d4 {[%emt 0:00:04]} Nf6 {[%emt 0:00:26]} 5. Nf3 {[%emt 0:01:51]} e6 {[%emt 0:00:07]} 6. Na3 {[%emt 0:02:17]} Nc6 {[%emt 0:07:18]} 7. Be3 {[%emt 0:03:19]} cxd4 {[%emt 0:05:01]} 8. Nb5 {[%emt 0:00:10]} Qd8 {[%emt 0:01:23]} 9. Nbxd4 {[%emt 0:01:14]} Nd5 {[%emt 0:04:20]} 10. Nxc6 {[%emt 0:17:48]} bxc6 {[%emt 0:00:03]} 11. Bd4 {[%emt 0:00:53]} f6 {[%emt 0:02:10]} 12. Bc4 {[%emt 0:19:19]} Bd6 {[%emt 0:15:03]} 13. O-O {[%emt 0:00:57]} O-O {[%emt 0:00:04]} 14. Re1 {[%emt 0:01:17]} Qc7 {[%emt 0:02:10]} 15. Bb3 {[%emt 0:05:59]} c5 {[%emt 0:09:19]} 16. Bxd5 {[%emt 0:01:50]} exd5 {[%emt 0:00:03]} 17. Bxf6 {[%emt 0:00:40]} gxf6 {[%emt 0:14:40]} 18. Qxd5+ {[%emt 0:00:14]} Kg7 {[%emt 0:00:03]} 19. Rad1 {[%emt 0:16:03]} Bf4 {[%emt 0:00:09]} 20. Re4 {[%emt 0:07:26]} Rb8 {[%emt 0:04:14]} 21. Qc4 {[%emt 0:07:37]} Bd6 {[%emt 0:04:36]} 22. Rh4 {[%emt 0:01:51]} Rb6 {[%emt 0:01:32]} 23. Qd3 {[%emt 0:02:35]} Kg8 {[%emt 0:00:36]} 24. Qe4 {[%emt 0:02:07]} Qf7 {[%emt 0:01:48]} 25. Rd5 {[%emt 0:01:27]} Qg6 {[%emt 0:10:20]} 26. Nd2 {[%emt 0:02:20]} Re8 {[%emt 0:03:31]} 0-1

[Event "Cellavision Cup 2018"]
[Site "Lund"]
[Date "2018.08.05"]
[Round "7"]
[White "Hillarp Persson, Tiger"]
[Black "Maiorov, Nikita"]
[Result "1-0"]
[ECO "A07"]
[WhiteElo "2542"]
[BlackElo "2504"]
[Annotator "ChessBase"]
[PlyCount "85"]
[EventDate "2018.08.03"]
[EventType "swiss"]
[EventCountry "SWE"]
[SourceTitle "playchess.com"]
[Source "ChessBase"]
[SourceQuality "1"]
[TimeControl "5400+30"]

1. Nf3 {[%emt 0:03:48]} Nf6 {[%emt 0:00:00]} 2. g3 {[%emt 0:00:25]} d5 {[%emt 0:00:00]} 3. Bg2 {[%emt 0:00:09]} c6 {[%emt 0:00:03]} 4. O-O {[%emt 0:00:07]} Bg4 {[%emt 0:00:06]} 5. h3 {[%emt 0:00:06]} Bh5 {[%emt 0:00:39]} 6. d3 {[%emt 0:00:35]} e6 {[%emt 0:00:18]} 7. c4 {[%emt 0:00:22]} Nbd7 {[%emt 0:07:02]} 8. cxd5 {[%emt 0:00:11]} exd5 {[%emt 0:00:06]} 9. Nc3 {[%emt 0:00:25]} Bc5 {[%emt 0:03:36]} 10. Qb3 {[%emt 0:02:20]} Nb6 {[%emt 0:04:16]} 11. Qc2 {[%emt 0:08:49]} O-O {[%emt 0:03:24]} 12. e4 {[%emt 0:05:02]} dxe4 {[%emt 0:01:15]} 13. dxe4 {[%emt 0:00:07]} Nfd7 {[%emt 0:04:28]} 14. Kh2 {[%emt 0:15:21]} f6 {[%emt 0:17:34]} 15. b3 {[%emt 0:13:44]} Re8 {[%emt 0:03:37]} 16. Bb2 {[%emt 0:02:49]} Qc7 {[%emt 0:04:04]} 17. Nh4 {[%emt 0:02:34]} Bf8 {[%emt 0:06:07]} 18. Nb5 {[%emt 0:02:33]} Qb8 {[%emt 0:01:59]} 19. Nd4 {[%emt 0:00:09]} a5 {[%emt 0:00:56]} 20. f4 {[%emt 0:01:46]} a4 {[%emt 0:02:32]} 21. Kh1 {[%emt 0:02:21]} axb3 {[%emt 0:02:33]} 22. axb3 {[%emt 0:00:07]} Rxa1 {[%emt 0:00:03]} 23. Bxa1 {[%emt 0:00:41]} Bf7 {[%emt 0:00:24]} 24. Nhf5 {[%emt 0:07:41]} c5 {[%emt 0:02:39]} 25. Nb5 {[%emt 0:02:16]} c4 {[%emt 0:00:07]} 26. bxc4 {[%emt 0:00:12]} Nxc4 {[%emt 0:00:25]} 27. Qc3 {[%emt 0:17:52]} Qc8 {[%emt 0:07:27]} 28. Rd1 {[%emt 0:02:07]} Rd8 {[%emt 0:02:04]} 29. Kh2 {[%emt 0:02:19]} Qc6 {[%emt 0:00:58]} 30. Nbd4 {[%emt 0:02:58]} Qa4 {[%emt 0:06:52]} 31. Nc2 {[%emt 0:00:25]} Ra8 {[%emt 0:00:51]} 32. e5 {[%emt 0:04:41]} fxe5 {[%emt 0:00:52]} 33. fxe5 {[%emt 0:00:42]} Ndxe5 {[%emt 0:00:53]} 34. Nce3 {[%emt 0:00:37]} Qa3 {[%emt 0:14:00]} 35. Qd4 {[%emt 0:00:27]} Nxe3 {[%emt 0:03:03]} 36. Nh6+ {[%emt 0:00:37]} Kh8 {[%emt 0:00:12]} 37. Qxe5 {[%emt 0:00:11]} Bc4 {[%emt 0:01:10]} 38. Bb2 {[%emt 0:00:33]} Qa4 {[%emt 0:01:41]} 39. Rd4 {[%emt 0:00:29]} Re8 {[%emt 0:00:07]} 40. Rxc4 {[%emt 0:00:00]} Nxc4 {[%emt 0:00:03]} 41. Nf7+ {[%emt 0:00:29]} Kg8 {[%emt 0:00:04]} 42. Nh6+ {[%emt 0:00:53]} Kh8 {[%emt 0:00:06]} 43. Qd5 1-0

[Event "Cellavision Cup 2018"]
[Site "Lund"]
[Date "2018.08.05"]
[Round "7"]
[White "Sivuk, Vitaly"]
[Black "Sumets, Andrey"]
[Result "1/2-1/2"]
[ECO "A06"]
[WhiteElo "2535"]
[BlackElo "2575"]
[Annotator "ChessBase"]
[PlyCount "100"]
[EventDate "2018.08.03"]
[EventType "swiss"]
[EventCountry "SWE"]
[SourceTitle "playchess.com"]
[Source "ChessBase"]
[SourceQuality "1"]
[TimeControl "5400+30"]

1. Nf3 {[%emt 0:06:13]} d5 {[%emt 0:00:00]} 2. g3 {[%emt 0:00:10]} Nf6 {[%emt 0:00:00]} 3. Bg2 {[%emt 0:00:20]} e6 {[%emt 0:00:00]} 4. c4 {[%emt 0:00:33]} Be7 {[%emt 0:00:02]} 5. d4 {[%emt 0:01:52]} O-O {[%emt 0:00:08]} 6. Nc3 {[%emt 0:00:11]} c6 {[%emt 0:01:01]} 7. Qd3 {[%emt 0:00:51]} b6 {[%emt 0:08:34]} 8. O-O {[%emt 0:02:32]} Ba6 {[%emt 0:16:09]} 9. b3 {[%emt 0:00:51]} b5 {[%emt 0:04:09]} 10. cxb5 {[%emt 0:11:18]} cxb5 {[%emt 0:00:22]} 11. Nxb5 {[%emt 0:00:11]} Qb6 {[%emt 0:00:14]} 12. a4 {[%emt 0:00:12]} Nc6 {[%emt 0:00:06]} 13. Bd2 {[%emt 0:07:26]} Ne4 {[%emt 0:05:47]} 14. Rfc1 {[%emt 0:08:38]} Nxd2 {[%emt 0:11:33]} 15. Qxd2 {[%emt 0:03:26]} Bxb5 {[%emt 0:00:13]} 16. axb5 {[%emt 0:00:06]} Qxb5 {[%emt 0:00:03]} 17. Qc2 {[%emt 0:04:04]} Na5 {[%emt 0:08:08]} 18. Bf1 {[%emt 0:09:43]} Bd8 {[%emt 0:07:42]} 19. Ra3 {[%emt 0:07:01]} Bb6 {[%emt 0:11:34]} 20. Qc3 {[%emt 0:06:46]} Nb7 {[%emt 0:00:12]} 21. e3 {[%emt 0:05:17]} Qe8 {[%emt 0:02:59]} 22. Ba6 {[%emt 0:00:18]} Nd6 {[%emt 0:00:25]} 23. Ra2 {[%emt 0:04:01]} f6 {[%emt 0:02:17]} 24. Qb4 {[%emt 0:01:57]} Qe7 {[%emt 0:03:05]} 25. Rc6 {[%emt 0:01:01]} Rfd8 {[%emt 0:00:06]} 26. Rac2 {[%emt 0:00:13]} Rab8 {[%emt 0:00:13]} 27. Qa3 {[%emt 0:01:37]} Nf5 {[%emt 0:01:57]} 28. Qc1 {[%emt 0:01:04]} Rd6 {[%emt 0:02:36]} 29. Bd3 {[%emt 0:00:41]} Rxc6 {[%emt 0:01:05]} 30. Rxc6 {[%emt 0:00:02]} Nd6 {[%emt 0:00:12]} 31. Qc2 {[%emt 0:00:05]} g6 {[%emt 0:03:26]} 32. Nh4 {[%emt 0:03:59]} Nf7 {[%emt 0:02:04]} 33. Ng2 {[%emt 0:09:21]} Nd8 {[%emt 0:00:22]} 34. Rc3 {[%emt 0:00:21]} Ba5 {[%emt 0:00:30]} 35. Rc8 {[%emt 0:01:04]} Rxc8 {[%emt 0:00:13]} 36. Qxc8 {[%emt 0:00:05]} Qc7 {[%emt 0:00:33]} 37. Ba6 {[%emt 0:00:26]} Qxc8 {[%emt 0:00:13]} 38. Bxc8 {[%emt 0:00:02]} g5 {[%emt 0:00:53]} 39. h4 {[%emt 0:00:30]} h6 {[%emt 0:00:34]} 40. Kf1 {[%emt 0:00:35]} Kf7 {[%emt 0:00:10]} 41. Ke2 {[%emt 0:00:22]} Ke7 {[%emt 0:01:46]} 42. Ba6 {[%emt 0:00:46]} Nf7 {[%emt 0:00:33]} 43. hxg5 {[%emt 0:00:42]} hxg5 {[%emt 0:00:04]} 44. g4 {[%emt 0:00:55]} Nd6 {[%emt 0:00:25]} 45. f3 {[%emt 0:01:29]} Kd7 {[%emt 0:00:20]} 46. Bd3 {[%emt 0:00:24]} Bc3 {[%emt 0:04:12]} 47. Bh7 {[%emt 0:00:42]} Nb7 {[%emt 0:01:14]} 48. Kd3 {[%emt 0:00:28]} Bb4 {[%emt 0:00:05]} 49. e4 dxe4+ {[%emt 0:00:16]} 50. Bxe4 {[%emt 0:01:47]} Nd6 {[%emt 0:00:28]} 1/2-1/2

[Event "Cellavision Cup 2018"]
[Site "Lund"]
[Date "2018.08.05"]
[Round "7"]
[White "Hector, Jonny"]
[Black "Urkedal, Frode Olav Olsen"]
[Result "1-0"]
[ECO "C55"]
[WhiteElo "2491"]
[BlackElo "2537"]
[Annotator "ChessBase"]
[PlyCount "119"]
[EventDate "2018.08.03"]
[EventType "swiss"]
[EventCountry "SWE"]
[SourceTitle "playchess.com"]
[Source "ChessBase"]
[SourceQuality "1"]
[TimeControl "5400+30"]

1. e4 {[%emt 0:00:00]} e5 {[%emt 0:00:21]} 2. Nf3 {[%emt 0:00:00]} Nc6 {[%emt 0:00:06]} 3. Bc4 {[%emt 0:00:00]} Nf6 {[%emt 0:00:05]} 4. d4 {[%emt 0:00:37]} exd4 {[%emt 0:00:25]} 5. e5 {[%emt 0:00:24]} d5 {[%emt 0:00:03]} 6. Bb5 {[%emt 0:00:15]} Nd7 {[%emt 0:00:04]} 7. O-O {[%emt 0:02:59]} Be7 {[%emt 0:01:56]} 8. Bxc6 {[%emt 0:00:27]} bxc6 {[%emt 0:00:04]} 9. Nxd4 {[%emt 0:00:19]} Nb8 {[%emt 0:00:07]} 10. Nc3 {[%emt 0:00:16]} O-O {[%emt 0:00:12]} 11. Qh5 {[%emt 0:00:34]} Re8 {[%emt 0:05:21]} 12. Rd1 {[%emt 0:07:48]} Qd7 {[%emt 0:01:07]} 13. Be3 {[%emt 0:09:43]} Bf8 {[%emt 0:02:28]} 14. h3 {[%emt 0:07:40]} c5 {[%emt 0:06:06]} 15. Nf3 {[%emt 0:03:48]} d4 {[%emt 0:01:52]} 16. Bf4 {[%emt 0:03:13]} Bb7 {[%emt 0:18:14]} 17. Nb1 {[%emt 0:02:29]} g6 {[%emt 0:09:01]} 18. Qh4 {[%emt 0:00:47]} Bxf3 {[%emt 0:00:47]} 19. gxf3 {[%emt 0:00:04]} Nc6 {[%emt 0:01:12]} 20. Re1 {[%emt 0:09:16]} Bg7 {[%emt 0:01:49]} 21. Nd2 {[%emt 0:03:50]} Nxe5 {[%emt 0:10:06]} 22. Bxe5 {[%emt 0:00:18]} Bxe5 {[%emt 0:00:17]} 23. Nc4 Bg7 {[%emt 0:03:50]} 24. Kg2 {[%emt 0:02:42]} Qd5 {[%emt 0:04:08]} 25. b3 {[%emt 0:00:59]} Qf5 {[%emt 0:15:27]} 26. Re4 {[%emt 0:03:54]} Bf6 {[%emt 0:04:13]} 27. Qg4 {[%emt 0:01:00]} h5 {[%emt 0:01:14]} 28. Qxf5 {[%emt 0:01:07]} gxf5 {[%emt 0:00:02]} 29. Rxe8+ {[%emt 0:05:36]} Rxe8 {[%emt 0:00:05]} 30. Kf1 {[%emt 0:02:26]} d3 {[%emt 0:02:25]} 31. Rd1 {[%emt 0:01:30]} dxc2 {[%emt 0:00:09]} 32. Rc1 {[%emt 0:00:06]} Kg7 {[%emt 0:02:05]} 33. Rxc2 {[%emt 0:00:42]} Bd4 {[%emt 0:01:14]} 34. Nb2 {[%emt 0:05:57]} Bxb2 {[%emt 0:03:22]} 35. Rxb2 {[%emt 0:00:07]} Rb8 {[%emt 0:00:43]} 36. Rc2 {[%emt 0:05:12]} Rb5 {[%emt 0:00:01]} 37. Rc4 {[%emt 0:02:27]} Kf6 {[%emt 0:00:33]} 38. Ke2 {[%emt 0:04:15]} Ke5 {[%emt 0:03:09]} 39. Kd3 {[%emt 0:02:02]} f6 {[%emt 0:01:09]} 40. Ke3 {[%emt 0:01:36]} c6 {[%emt 0:01:18]} 41. Kd3 {[%emt 0:02:25]} f4 {[%emt 0:02:12]} 42. Kc3 {[%emt 0:01:23]} Kf5 {[%emt 0:01:04]} 43. h4 {[%emt 0:01:05]} Ke5 {[%emt 0:00:30]} 44. a4 {[%emt 0:00:36]} Ra5 {[%emt 0:00:02]} 45. Re4+ {[%emt 0:00:12]} Kf5 {[%emt 0:00:01]} 46. Kc4 {[%emt 0:00:14]} Ra6 {[%emt 0:00:42]} 47. Kxc5 {[%emt 0:00:31]} Rb6 {[%emt 0:01:09]} 48. b4 {[%emt 0:00:18]} Rb8 {[%emt 0:00:02]} 49. a5 {[%emt 0:05:45]} Rd8 {[%emt 0:00:48]} 50. Kxc6 {[%emt 0:00:25]} Rd3 {[%emt 0:00:08]} 51. b5 {[%emt 0:00:27]} Rxf3 {[%emt 0:00:13]} 52. Rb4 {[%emt 0:00:32]} Rxf2 {[%emt 0:00:21]} 53. Kb7 {[%emt 0:02:04]} Ra2 {[%emt 0:00:39]} 54. a6 {[%emt 0:00:05]} f3 {[%emt 0:00:15]} 55. Rb1 {[%emt 0:01:25]} f2 {[%emt 0:00:19]} 56. Rf1 {[%emt 0:00:28]} Rb2 {[%emt 0:00:24]} 57. Rxf2+ {[%emt 0:00:09]} Rxf2 {[%emt 0:00:04]} 58. Kxa7 {[%emt 0:00:07]} Rb2 {[%emt 0:02:18]} 59. b6 {[%emt 0:00:08]} Kg4 {[%emt 0:00:43]} 60. b7 {[%emt 0:00:25]} 1-0

[Event "Cellavision Cup 2018"]
[Site "Lund"]
[Date "2018.08.05"]
[Round "7"]
[White "Cramling, Pia"]
[Black "Gritsak, Orest"]
[Result "1-0"]
[ECO "A04"]
[WhiteElo "2453"]
[BlackElo "2464"]
[Annotator "RC"]
[PlyCount "67"]
[EventDate "2018.08.03"]
[EventType "swiss"]
[EventCountry "SWE"]
[SourceTitle "playchess.com"]
[Source "ChessBase"]
[SourceQuality "1"]
[TimeControl "5400+30"]

1. Nf3 {[%emt 0:00:25]} c5 {[%emt 0:04:25]} 2. c4 {[%emt 0:00:12]} Nf6 {[%emt 0:00:18]} 3. Nc3 {[%emt 0:00:43]} e6 {[%emt 0:01:46]} 4. g3 {[%emt 0:00:56]} b6 {[%emt 0:00:47]} 5. Bg2 {[%emt 0:00:08]} Bb7 {[%emt 0:00:04]} 6. O-O {[%emt 0:00:12]} d6 {[%emt 0:01:49]} 7. d4 {[%emt 0:01:07]} cxd4 {[%emt 0:00:10]} 8. Qxd4 {[%emt 0:00:11]} a6 {[%emt 0:00:20]} 9. Rd1 {[%emt 0:01:22]} Nbd7 {[%emt 0:06:05]} 10. Bg5 {[%emt 0:04:53]} Be7 {[%emt 0:07:21]} 11. Qd2 {[%emt 0:00:47]} O-O {[%emt 0:03:18]} 12. Bf4 {[%emt 0:01:17]} Ne8 {[%emt 0:00:05]} 13. Rac1 {[%emt 0:00:30]} Rc8 {[%emt 0:23:10]} 14. b3 {[%emt 0:01:34]} Rc7 {[%emt 0:07:46]} 15. Ne1 {[%emt 0:23:55]} Bxg2 {[%emt 0:03:49]} 16. Nxg2 {[%emt 0:01:32]} Rc6 {[%emt 0:02:50]} 17. e4 {[%emt 0:04:38]} Nef6 {[%emt 0:04:21]} 18. Qe2 {[%emt 0:00:00]} Re8 {[%emt 0:01:24]} 19. Ne1 {[%emt 0:05:46]} Qa8 {[%emt 0:00:36]} 20. Nd3 {[%emt 0:11:09]} Nc5 {[%emt 0:00:24]} 21. Nxc5 {[%emt 0:04:15]} bxc5 {[%emt 0:00:06]} 22. Rd3 {[%emt 0:00:37]} Rd8 {[%emt 0:09:27]} 23. Rcd1 {[%emt 0:00:26]} Ne8 {[%emt 0:00:04]} 24. e5 {[%emt 0:05:03]} dxe5 {[%emt 0:00:42]} 25. Rxd8 {[%emt 0:01:01]} Bxd8 {[%emt 0:03:57]} 26. Bxe5 {[%emt 0:00:07]} Nf6 {[%emt 0:09:31]} 27. Ne4 {[%emt 0:08:36]} Be7 {[%emt 0:00:33]} 28. Nxf6+ {[%emt 0:03:32]} gxf6 {[%emt 0:00:31]} 29. Bc3 {[%emt 0:02:16]} Qb7 {[%emt 0:01:13]} 30. Qg4+ {[%emt 0:01:18]} Kh8 {[%emt 0:00:07]} 31. Qh5 {[%emt 0:04:25]} Kg8 {[%emt 0:00:20]} 32. Qh4 {[%emt 0:01:38]} e5 {[%emt 0:01:22]} 33. Qg4+ {[%emt 0:00:43]} Kf8 {[%emt 0:00:06]} 34. Bd2 {[%emt 0:03:11]} 1-0

[Event "Cellavision Cup 2018"]
[Site "Lund"]
[Date "2018.08.05"]
[Round "7"]
[White "Ahlander, Bjorn"]
[Black "Strange, Mikkel"]
[Result "1-0"]
[ECO "D34"]
[WhiteElo "2433"]
[BlackElo "2370"]
[Annotator "NA"]
[PlyCount "121"]
[EventDate "2018.08.03"]
[EventType "swiss"]
[EventCountry "SWE"]
[SourceTitle "playchess.com"]
[Source "ChessBase"]
[SourceQuality "1"]
[TimeControl "5400+30"]

1. d4 {[%emt 0:00:00]} d5 {[%emt 0:00:00]} 2. c4 {[%emt 0:00:06]} e6 {[%emt 0:00:00]} 3. Nc3 {[%emt 0:00:06]} c5 {[%emt 0:00:00]} 4. cxd5 {[%emt 0:00:21]} exd5 {[%emt 0:00:00]} 5. Nf3 {[%emt 0:00:14]} Nc6 {[%emt 0:00:00]} 6. g3 {[%emt 0:00:35]} Nf6 {[%emt 0:00:04]} 7. Bg2 {[%emt 0:00:04]} Be7 {[%emt 0:00:04]} 8. O-O {[%emt 0:00:08]} O-O {[%emt 0:00:05]} 9. dxc5 {[%emt 0:04:35]} Bxc5 {[%emt 0:00:09]} 10. b3 {[%emt 0:00:20]} Be6 {[%emt 0:06:10]} 11. Bb2 {[%emt 0:00:45]} Qd7 {[%emt 0:04:26]} 12. Rc1 {[%emt 0:04:15] D34: Tarrasch Defence: 6 g3 Nf6 7 Bg2 Be7} Be7 {[%emt 0:00:45]} 13. Ng5 $146 {[%emt 0:06:35]} ({Predecessor:} 13. Na4 b6 14. Nd4 Rac8 15. Nxc6 Rxc6 16. Rxc6 Qxc6 17. Qd4 Qd7 18. Rd1 Rd8 19. e3 Bh3 {1-0 (57) Polishchuk,O (2228)-Ivanov,P Odessa 2008}) 13... Rad8 {[%emt 0:07:00]} 14. Nxe6 {[%emt 0:01:41]} Qxe6 {[%emt 0:03:10]} 15. Nb5 {[%emt 0:02:25]} Ne4 {[%emt 0:02:08]} 16. Nd4 {[%emt 0:05:41]} Nxd4 {[%emt 0:01:04]} 17. Bxd4 {[%emt 0:00:10]} Bf6 {[%emt 0:02:46]} 18. Qd3 {[%emt 0:04:34]} Bxd4 {[%emt 0:04:17]} 19. Qxd4 {[%emt 0:00:30]} Qa6 {[%emt 0:01:35]} 20. Rc2 {[%emt 0:00:57]} Nf6 {[%emt 0:00:41]} 21. Rfc1 {[%emt 0:00:45]} h6 {[%emt 0:01:24]} 22. e3 {[%emt 0:01:08]} Rd7 {[%emt 0:03:46]} 23. a4 {[%emt 0:01:16]} Rd6 {[%emt 0:04:37]} 24. Rc5 {[%emt 0:07:43]} Rfd8 {[%emt 0:02:33]} 25. Bf1 {[%emt 0:03:26]} Qb6 $16 {[%emt 0:00:53]} 26. b4 {[%emt 0:22:49]} a6 {[%emt 0:05:27]} 27. a5 {[%emt 0:01:11]} Qa7 {[%emt 0:00:25]} 28. Bd3 {[%emt 0:09:09]} g6 {[%emt 0:09:31]} 29. Kg2 {[%emt 0:01:30]} Kg7 {[%emt 0:00:56]} 30. h3 {[%emt 0:00:20]} R8d7 {[%emt 0:01:50]} 31. g4 {[%emt 0:00:26]} Rd8 {[%emt 0:06:37]} 32. h4 {[%emt 0:01:02]} Kg8 {[%emt 0:01:21]} 33. g5 {[%emt 0:04:09]} hxg5 {[%emt 0:02:31]} 34. hxg5 {[%emt 0:00:02]} Nh5 {[%emt 0:07:29]} 35. Be2 {[%emt 0:00:05]} b5 {[%emt 0:04:52]} 36. Bxh5 {[%emt 0:04:57]} gxh5 {[%emt 0:00:13]} 37. Rh1 {[%emt 0:00:06]} Qe7 {[%emt 0:01:20]} 38. Rxh5 {[%emt 0:00:07]} Qe4+ {[%emt 0:00:33]} 39. Qxe4 {[%emt 0:00:05]} dxe4 {[%emt 0:00:05]} 40. Re5 {[%emt 0:01:05]} Re6 {[%emt 0:03:15]} 41. Rxe6 {[%emt 0:05:00]} fxe6 {[%emt 0:00:05]} 42. Rh4 {[%emt 0:03:50]} Rd5 {[%emt 0:00:08]} 43. Rg4 {[%emt 0:00:42]} Kg7 {[%emt 0:01:11]} 44. g6 {[%emt 0:00:04]} Rf5 {[%emt 0:01:11]} 45. Rxe4 {[%emt 0:01:10]} Rg5+ {[%emt 0:02:21]} 46. Kf3 {[%emt 0:00:04]} Rf5+ {[%emt 0:00:48]} 47. Rf4 {[%emt 0:00:10]} Rh5 {[%emt 0:00:28]} 48. Rg4 {[%emt 0:01:54]} Rf5+ {[%emt 0:01:37]} 49. Ke2 {[%emt 0:02:07]} Rd5 {[%emt 0:00:20]} 50. Rd4 {[%emt 0:00:59]} Rh5 {[%emt 0:04:28]} 51. Rd6 {[%emt 0:00:17]} e5 {[%emt 0:01:14]} 52. Rxa6 {[%emt 0:01:24]} Rh4 {[%emt 0:00:10]} 53. Re6 {[%emt 0:01:03]} Rxb4 {[%emt 0:00:29]} 54. Rxe5 {[%emt 0:00:05]} Kxg6 {[%emt 0:00:10]} 55. f4 {[%emt 0:00:37]} Rb1 {[%emt 0:02:40]} 56. Kd3 {[%emt 0:01:07]} b4 {[%emt 0:00:11]} 57. Rb5 {[%emt 0:00:15]} b3 {[%emt 0:00:39]} 58. a6 {[%emt 0:00:41]} b2 {[%emt 0:03:11]} 59. Ke4 {[%emt 0:01:29]} Kf6 {[%emt 0:01:00]} 60. Rb6+ {[%emt 0:00:40]} Ke7 {[%emt 0:00:13]} 61. a7 {[%emt 0:00:23]} 1-0